bitfinex-derivatives/quotes_SOLF0:USTF0_20250919
["timestamp","ask_amount","ask_price","bid_price","bid_amount"]
[1758286674167,6.97089441,240.94,240.88,104.1745]
[1758286675356,6.97089441,240.94,240.89,6.55]
[1758286675567,6.97089441,240.94,240.88,104.1745]
[1758286675766,6.97089441,240.94,240.9,6.55]
[1758286676167,6.94,240.93,240.9,6.55]
[1758286676370,6.94,240.93,240.88,104.1745]
[1758286677064,6.94,240.93,240.89,6.55]
[1758286677265,6.94,240.93,240.89,6.62]
[1758286678369,6.94,240.93,240.88,104.1745]
[1758286678564,6.94,240.93,240.89,7.1]
[1758286678764,6.94,240.93,240.88,104.1745]
[1758286679166,6.94,240.93,240.89,7.1]
[1758286679671,6.94,240.93,240.88,104.1345]
[1758286679969,6.94,240.93,240.89,7.1]
[1758286680670,6.94,240.93,240.88,104.1345]
[1758286681266,0.03089441,240.94,240.89,3.7342]
[1758286681568,0.03089441,240.94,240.89,7.1]
[1758286682162,0.03089441,240.94,240.93,7.1]
[1758286682359,0.03089441,240.94,240.93,107.52]
[1758286686972,0.03089441,240.94,240.93,7.1]
[1758286687179,0.03089441,240.94,240.93,107.52]
[1758286688267,0.03089441,240.94,240.93,7.1]
[1758286688571,0.03089441,240.94,240.93,107.5]
[1758286690773,0.03089441,240.94,240.93,7.1]
[1758286690974,0.03089441,240.94,240.93,107.5]
[1758286692172,0.03089441,240.94,240.93,7.1]
[1758286692372,0.03089441,240.94,240.93,107.48]
[1758286694376,0.03089441,240.94,240.93,7.1]
[1758286694688,0.03089441,240.94,240.93,107.48]
[1758286701286,0.03089441,240.94,240.93,7.1]
[1758286701584,0.03089441,240.94,240.93,107.48]
[1758286703480,0.03089441,240.94,240.93,7.1]
[1758286703688,0.03089441,240.94,240.93,107.48]
[1758286704986,0.03089441,240.94,240.93,7.1]
[1758286705188,0.03089441,240.94,240.93,107.48]
[1758286705383,0.03089441,240.94,240.93,7.1]
[1758286705579,6.56,240.93,240.88,7.1]
[1758286705779,0.03089441,240.94,240.89,100.38]
[1758286706087,6.56,240.93,240.9,107.5]
[1758286706585,6.56,240.93,240.91,100.4]
[1758286707185,1.76895504,240.92,240.83,7.1]
[1758286707388,10.2941,240.91,240.83,7.1]
[1758286707584,10.2941,240.91,240.84,23.94]
[1758286708490,10.5543,240.9,240.81,3.7355]
[1758286708691,6.82,240.89,240.82,42.52]
[1758286708892,3.7343,240.9,240.81,3.7355]
[1758286709093,0.02777859,240.88,240.82,49.44]
[1758286709286,6.84777859,240.88,240.82,49.44]
[1758286709481,6.84777859,240.88,240.83,100.48]
[1758286709682,0.02777859,240.88,240.83,100.48]
[1758286709891,6.82,240.87,240.83,100.48]
[1758286710388,6.82,240.87,240.84,6.71]
[1758286712092,0.02777859,240.88,240.84,6.71]
[1758286712391,6.82,240.87,240.84,6.71]
[1758286712991,0.02777859,240.88,240.84,48.53]
[1758286713199,6.82,240.87,240.84,48.53]
[1758286714892,0.02777859,240.88,240.85,6.71]
[1758286715090,0.02777859,240.88,240.84,45.555]
[1758286715396,0.02777859,240.88,240.85,6.71]
[1758286715891,6.84777859,240.88,240.85,6.71]
[1758286716294,0.02777859,240.88,240.85,6.71]
[1758286716494,6.82,240.87,240.85,6.71]
[1758286716889,0.02777859,240.88,240.85,6.71]
[1758286718691,0.02777859,240.88,240.84,45.555]
[1758286718895,0.02777859,240.88,240.85,6.71]
[1758286722698,6.84777859,240.88,240.85,6.71]
[1758286723900,6.82,240.87,240.85,6.71]
[1758286724700,0.02777859,240.88,240.83,100.44]
[1758286724701,6.84777859,240.88,240.83,100.44]
[1758286724893,0.02777859,240.88,240.83,100.44]
[1758286725199,6.82,240.87,240.83,107.15]
[1758286725400,0.02777859,240.88,240.83,107.15]
[1758286725601,6.82,240.87,240.83,107.15]
[1758286725800,0.02777859,240.88,240.83,107.15]
[1758286726100,6.82,240.87,240.83,107.15]
[1758286726601,0.02777859,240.88,240.83,107.15]
[1758286726992,0.02777859,240.88,240.83,6.71]
[1758286727703,6.82,240.87,240.83,6.71]
[1758286728198,6.82,240.87,240.8,6.71]
[1758286729099,0.0309267,240.86,240.8,10.4456]
[1758286729498,0.0309267,240.86,240.8,6.71]
[1758286730907,0.0309267,240.86,240.79,58.1147]
[1758286730908,0.0309267,240.86,240.85,6.71]
[1758286735806,0.0309267,240.86,240.85,7.84203088]
[1758286747115,0.0309267,240.86,240.85,6.71]
[1758286747318,0.0309267,240.86,240.85,107.29]
[1758286749715,0.0309267,240.86,240.85,107.33]
[1758286754623,0.0309267,240.86,240.85,6.71]
[1758286754918,0.0309267,240.86,240.85,107.31]
[1758286784845,0.0309267,240.86,240.85,114.28959529]
[1758286785344,7.89203088,240.95,240.87,6.74]
[1758286785545,7.89203088,240.95,240.89,6.74]
[1758286785741,1.13203088,240.95,240.9,107.18]
[1758286786136,6.76,240.94,240.9,107.18]
[1758286786341,1.13203088,240.95,240.9,107.18]
[1758286786544,6.76,240.94,240.91,6.74]
[1758286786741,6.76,240.95,240.92,100.44]
[1758286787044,1.13203088,240.96,240.93,3.7337]
[1758286787244,6.76,240.95,240.94,100.42]
[1758286791243,7.89203088,240.95,240.94,100.42]
[1758286791443,7.89203088,240.95,240.9,3.76311419]
[1758286791638,6.76,240.91,240.9,3.76311419]
[1758286791848,6.76,240.91,240.9,85.68311419]
[1758286793044,6.76,240.91,240.9,104.18311419]
[1758286797655,6.76,240.91,240.9,3.76311419]
[1758286798152,6.76,240.91,240.9,104.18311419]
[1758286798455,6.76,240.91,240.9,3.76311419]
[1758286798660,6.76,240.91,240.9,104.18311419]
[1758286799163,6.76,240.91,240.9,3.76311419]
[1758286799361,7.18,240.91,240.9,0.02911419]
[1758286799662,7.18,240.91,240.9,100.44911419]
[1758286800455,6.76,240.91,240.9,0.02911419]
[1758286800855,10.07799331,240.91,240.8,6.82]
[1758286801165,6.56,240.88,240.81,15.42]
[1758286801766,6.56,240.97,240.82,6.82]
[1758286802063,6.56,240.92,240.83,6.82]
[1758286802267,6.58852167,240.92,240.83,6.82]
[1758286803857,6.56,240.91,240.88,3.7344]
[1758286804063,6.56,240.91,240.86,6.82]
[1758286804264,6.56,240.91,240.81,6.82]
[1758286804560,0.02852167,240.92,240.87,3.7346]
[1758286805167,6.56,240.91,240.87,3.7346]
[1758286805368,0.02852167,240.92,240.87,3.7346]
[1758286806166,6.56,240.91,240.88,3.7344]
[1758286806368,0.02852167,240.92,240.88,3.7344]
[1758286806569,6.56,240.91,240.88,3.7344]
[1758286806868,0.02852167,240.92,240.88,3.7344]
[1758286807069,6.56,240.91,240.88,3.7344]
[1758286807468,0.02852167,240.92,240.88,3.7344]
[1758286807672,6.56,240.91,240.88,3.7344]
[1758286807868,0.02852167,240.92,240.88,3.7344]
[1758286808572,6.56,240.91,240.88,3.7344]
[1758286809171,0.02852167,240.92,240.88,3.7344]
[1758286809466,6.56,240.91,240.88,3.7344]
[1758286809667,0.02852167,240.92,240.88,3.7344]
[1758286810565,6.56,240.91,240.89,3.7343]
[1758286810766,0.02852167,240.92,240.86,6.82]
[1758286811368,6.56,240.91,240.9,3.7342]
[1758286811568,6.56,240.91,240.85,100.46]
[1758286811768,6.56,240.91,240.88,3.7344]
[1758286812168,6.56,240.91,240.88,10.5544]
[1758286813275,0.02852167,240.92,240.88,10.5544]
[1758286813475,6.56,240.91,240.88,10.5544]
[1758286815074,6.56,240.91,240.88,3.7344]
[1758286815377,0.02852167,240.92,240.88,3.7344]
[1758286815676,6.56,240.91,240.88,10.5544]
[1758286816071,0.02852167,240.92,240.88,10.5544]
[1758286816274,6.56,240.91,240.88,10.5544]
[1758286817180,6.56,240.91,240.88,3.7344]
[1758286817373,6.56,240.91,240.88,10.5544]
[1758286817981,6.56,240.91,240.88,3.7344]
[1758286818179,6.56,240.91,240.89,6.82]
[1758286820378,6.56,240.91,240.89,10.5543]
[1758286820774,0.02852167,240.92,240.87,6.82]
[1758286821777,0.02852167,240.92,240.9,3.7341]
[1758286821974,0.02852167,240.92,240.91,6.82]
[1758286823980,0.02852167,240.92,240.91,107.26]
[1758286829788,0.02852167,240.92,240.91,6.82]
[1758286829988,0.02852167,240.92,240.91,107.26]
[1758286830688,0.02852167,240.92,240.91,6.82]
[1758286830886,0.02852167,240.92,240.91,107.26]
[1758286838789,7.17,241.03,240.93,6.59]
[1758286838983,7.17,241.03,240.95,6.59]
[1758286839183,7.17,241.03,240.97,6.59]
[1758286839484,1.76905625,241.08,240.98,100.42]
[1758286839789,2.8886043,241.07,240.99,3.7327]
[1758286839990,10.0586043,241.06,241.01,0.02960655]
[1758286840293,7.17,241.04,241.01,100.44960655]
[1758286840488,5.50065625,241.08,241.01,100.44960655]
[1758286840692,2.88779118,241.07,241.01,100.44960655]
[1758286840889,7.17,241.05,241.01,100.44960655]
[1758286841092,5.50065625,241.08,241.01,100.44960655]
[1758286841292,7.17,241.06,241.01,100.44960655]
[1758286841591,5.50065625,241.08,241.01,100.44960655]
[1758286841791,7.17,241.06,241.01,104.18200655]
[1758286841986,7.17,241.07,241.01,104.18200655]
[1758286842192,5.50065625,241.08,241.01,104.18200655]
[1758286842496,5.50065625,241.08,241.01,100.44960655]
[1758286842794,7.17,241.07,241.01,100.44960655]
[1758286843197,7.17,241.07,241.02,3.7322]
[1758286844393,1.76905625,241.08,241.02,3.7322]
[1758286844592,7.17,241.07,241.02,3.7322]
[1758286844996,1.76905625,241.08,241.02,3.7322]
[1758286845198,7.17,241.08,241.01,107.03960655]
[1758286845698,7.17,241.08,241.05,3.7318]
[1758286845998,7.17,241.1,241.05,3.7318]
[1758286846795,5.50005625,241.11,241.01,107.03960655]
[1758286847701,7.17,241.1,241.01,107.03960655]
[1758286847899,7.17,241.1,241.03,3.7321]
[1758286849294,7.17,241.1,241.04,3.7319]
[1758286849598,7.17,241.1,241.04,10.3219]
[1758286850694,7.17,241.11,241.05,3.7318]
[1758286852093,10.9011,241.11,241.04,6.59]
[1758286852794,7.17,241.09,241.01,3.76210655]
[1758286853099,7.17,241.13,241.02,80.68]
[1758286853294,1.76905625,241.14,241.02,80.68]
[1758286853491,2.87966743,241.13,241.02,80.68]
[1758286853689,1.76905625,241.12,241.02,84.4122]
[1758286853889,7.17,241.11,241.02,91.0022]
[1758286854099,1.76905625,241.12,241.02,91.0022]
[1758286854298,7.17,241.11,241.02,91.0022]
[1758286854498,3.7312,241.1,241.05,0.02721778]
[1758286854701,1.76905625,241.13,241.05,6.61721778]
[1758286854895,7.17,241.12,241.05,6.61721778]
[1758286855603,7.17,241.12,241.05,0.02721778]
[1758286856802,3.7312,241.1,241.05,0.02721778]
[1758286857397,7.17,241.09,241.05,0.02721778]
[1758286857600,3.7312,241.1,241.05,0.02721778]
[1758286858303,1.76905625,241.13,241.05,0.02721778]
[1758286858503,9.88998087,241.12,241.05,0.02721778]
[1758286858693,7.01,241.12,241.05,0.02721778]
[1758286859901,7.01,241.08,241.05,0.02721778]
[1758286860303,1.13094268,241.06,241.05,0.02721778]
[1758286860503,8.14094268,241.06,241.05,0.02721778]
[1758286861405,7.01,241.06,241.05,0.02721778]
[1758286862907,3.731,241.11,241.05,0.02721778]
[1758286863505,7.01,241.1,241.05,0.02721778]
[1758286863807,3.731,241.11,241.05,0.02721778]
[1758286864210,3.731,241.11,241.05,6.71721778]
[1758286864403,10.741,241.11,241.05,6.71721778]
[1758286865915,10.741,241.11,241.05,10.44901778]
[1758286866110,7.01,241.11,241.05,10.44901778]
[1758286866307,7.01,241.11,241.06,3.7316]
[1758286866504,7.01,241.11,241.07,6.69]
[1758286867514,3.7306,241.14,241.07,6.69]
[1758286867710,7.01,241.13,241.07,6.69]
[1758286868409,10.7407,241.13,241.06,3.7316]
[1758286868615,10.7407,241.13,241.05,0.02721778]
[1758286868812,8.14094268,241.13,241.05,0.02721778]
[1758286869211,7.01,241.1,241.05,0.02721778]
[1758286869507,1.13094268,241.1,241.05,0.02721778]
[1758286869706,7.01,241.09,241.05,0.02721778]
[1758286869918,1.13094268,241.1,241.05,0.02721778]
[1758286870117,7.01,241.09,241.05,0.02721778]
[1758286870313,1.13094268,241.1,241.05,0.02721778]
[1758286870815,10.7414,241.09,241.05,0.02721778]
[1758286871015,7.01,241.08,241.05,0.02721778]
[1758286871411,10.741,241.11,241.05,0.02721778]
[1758286872015,7.7320741,241.15,241.07,6.69]
[1758286872220,2.88503809,241.14,241.07,6.69]
[1758286872419,7.01,241.14,241.07,6.69]
[1758286873216,7.01,241.11,241.05,0.02721778]
[1758286874916,10.7411,241.11,241.05,0.02721778]
[1758286876622,7.01,241.11,241.05,0.02721778]
[1758286879921,7.01,241.09,241.05,0.02721778]
[1758286880126,7.01,241.11,241.05,0.02721778]
[1758286880321,2.88521977,241.1,241.05,0.02721778]
[1758286880622,7.01,241.11,241.05,0.02721778]
[1758286880821,7.01,241.09,241.05,0.02721778]
[1758286881020,7.01,241.1,241.05,0.02721778]
[1758286881526,1.13094268,241.09,241.05,0.02721778]
[1758286881714,9.89659487,241.08,241.05,0.02721778]
[1758286881914,58.0363,241.12,241.05,0.02721778]
[1758286881915,8.14094268,241.06,241.05,0.02721778]
[1758286882125,11.02753755,241.06,241.05,0.02721778]
[1758286882825,11.44753755,241.06,241.05,0.02721778]
[1758286883026,7.01,241.04,240.91,1.13094268]
[1758286883228,8.14094268,241.02,240.91,1.13094268]
[1758286883525,7.01,241.0,240.92,6.69]
[1758286884221,0.02796896,240.98,240.97,1.13094268]
[1758286884427,0.02796896,240.98,240.97,7.82094268]
[1758286884624,10.742,241.05,240.97,11.55404268]
[1758286884929,0.02771246,241.0,240.97,4.86404268]
[1758286885126,0.02771246,241.0,240.99,6.69]
[1758286895833,0.02771246,241.0,240.94,101.61094268]
[1758286896032,0.02771246,241.0,240.95,7.16]
[1758286896231,0.02771246,241.0,240.94,101.61094268]
[1758286896432,0.02771246,241.0,240.95,7.16]
[1758286897032,0.02771246,241.0,240.96,3.7331]
[1758286897931,0.02771246,241.0,240.97,7.16]
[1758286898127,0.02771246,241.0,240.96,3.7331]
[1758286898334,0.02771246,241.0,240.97,7.16]
[1758286898928,0.02771246,241.0,240.96,3.7331]
[1758286899832,0.02771246,241.0,240.97,7.16]
[1758286900134,0.02771246,241.0,240.96,3.7331]
[1758286900831,0.02771246,241.0,240.97,7.16]
[1758286901231,0.02771246,241.0,240.96,3.7331]
[1758286902223,0.02771246,241.0,240.97,7.16]
[1758286902428,0.02771246,241.0,240.96,3.7331]
[1758286903034,0.02771246,241.0,240.97,7.16]
[1758286903235,0.02771246,241.0,240.96,3.7331]
[1758286904826,0.02771246,241.0,240.97,7.16]
[1758286905026,0.02771246,241.0,240.96,3.7331]
[1758286905328,0.02771246,241.0,240.97,7.16]
[1758286905926,0.02771246,241.0,240.96,3.7331]
[1758286906330,0.02771246,241.0,240.97,7.16]
[1758286906635,0.02771246,241.0,240.96,3.7331]
[1758286907234,0.02771246,241.0,240.97,7.16]
[1758286907436,0.02771246,241.0,240.96,3.7331]
[1758286907629,0.02771246,241.0,240.97,7.16]
[1758286907829,0.02771246,241.0,240.96,3.7331]
[1758286908425,0.02771246,241.0,240.97,7.16]
[1758286908825,0.02771246,241.0,240.96,3.7331]
[1758286909437,0.02771246,241.0,240.97,7.16]
[1758286909636,0.02771246,241.0,240.96,3.7331]
[1758286909837,0.02771246,241.0,240.97,7.16]
[1758286910028,0.02771246,241.0,240.96,3.7331]
[1758286910233,0.02771246,241.0,240.97,7.16]
[1758286910629,0.02771246,241.0,240.96,3.7331]
[1758286911036,0.02771246,241.0,240.97,7.16]
[1758286911840,0.02771246,241.0,240.96,3.7331]
[1758286912841,0.02771246,241.0,240.97,7.16]
[1758286913642,0.02771246,241.0,240.96,3.7331]
[1758286913846,0.02771246,241.0,240.97,7.16]
[1758286914138,0.02771246,241.0,240.96,3.7331]
[1758286914340,0.02771246,241.0,240.97,100.4]
[1758286914644,0.02771246,241.0,240.98,7.16]
[1758286914841,0.02771246,241.0,240.97,100.4]
[1758286915550,0.02771246,241.0,240.98,7.16]
[1758286915747,7.15771246,241.0,240.98,7.16]
[1758286915944,7.13,240.99,240.96,7.16]
[1758286916854,7.13,240.99,240.95,33.32]
[1758286917152,7.13,240.99,240.96,7.16]
[1758286917546,7.13,240.98,240.96,7.16]
[1758286917746,8.57005864,240.98,240.92,7.16]
[1758286917953,7.13,240.97,240.89,7.16]
[1758286918950,3.7333,240.96,240.89,7.16]
[1758286919656,0.03042702,240.95,240.89,7.16]
[1758286920448,0.03042702,240.95,240.9,100.4]
[1758286920654,0.03042702,240.95,240.91,7.21]
[1758286921053,0.03042702,240.95,240.9,100.4]
[1758286921358,0.03042702,240.95,240.91,7.21]
[1758286921558,0.03042702,240.95,240.9,100.4]
[1758286921954,0.03042702,240.95,240.91,7.21]
[1758286922154,0.03042702,240.95,240.88,16.48509593]
[1758286922354,0.03042702,240.95,240.89,107.61]
[1758286922557,0.03042702,240.95,240.9,7.21]
[1758286922760,0.03042702,240.95,240.89,104.1342]
[1758286922948,0.03042702,240.95,240.9,7.21]
[1758286923155,0.03042702,240.95,240.89,104.1342]
[1758286923353,0.03042702,240.95,240.9,7.21]
[1758286923550,6.73042702,240.95,240.91,7.21]
[1758286923751,6.73042702,240.95,240.9,100.4]
[1758286924151,6.73042702,240.95,240.89,3.7342]
[1758286924355,6.73042702,240.95,240.91,7.21]
[1758286924356,0.03042702,240.95,240.91,7.21]
[1758286924556,6.7,240.94,240.88,100.42]
[1758286924757,6.7,240.94,240.89,7.21]
[1758286925352,6.7,240.94,240.88,100.42]
[1758286925552,6.7,240.94,240.89,7.21]
[1758286925757,6.7,240.94,240.88,100.42]
[1758286926963,0.03042702,240.95,240.89,7.21]
[1758286927867,0.03042702,240.95,240.9,3.7341]
[1758286928662,0.03042702,240.95,240.91,7.21]
[1758286929362,0.03042702,240.95,240.9,3.7341]
[1758286929565,0.03042702,240.95,240.91,7.21]
[1758286929760,0.03042702,240.95,240.9,3.7341]
[1758286930167,0.03042702,240.95,240.89,7.21]
[1758286930670,0.03042702,240.95,240.89,107.65]
[1758286931470,0.03042702,240.95,240.9,7.21]
[1758286931668,0.03042702,240.95,240.89,100.44]
[1758286931868,0.03042702,240.95,240.9,7.21]
[1758286932069,0.03042702,240.95,240.89,104.1742]
[1758286932671,0.03042702,240.95,240.9,7.21]
[1758286933365,0.03042702,240.95,240.89,104.1742]
[1758286933873,0.03042702,240.95,240.9,7.21]
[1758286934068,0.03042702,240.95,240.89,104.1742]
[1758286934271,3.76402702,240.95,240.85,12.33886584]
[1758286934470,6.73042702,240.95,240.86,99.31]
[1758286934673,6.73042702,240.95,240.87,7.21]
[1758286935471,3.7337,240.94,240.87,7.21]
[1758286936274,3.7337,240.94,240.88,7.21]
[1758286936972,3.7337,240.94,240.88,74.2]
[1758286937171,3.7337,240.94,240.88,100.42]
[1758286937374,3.7337,240.94,240.87,3.7345]
[1758286937568,3.7337,240.94,240.88,100.42]
[1758286938274,3.7337,240.94,240.89,7.21]
[1758286938575,10.4337,240.94,240.89,7.21]
[1758286938969,0.03042702,240.95,240.79,6.97959529]
[1758286939170,6.7,240.94,240.82,7.21]
[1758286939369,6.7,240.94,240.83,20.16]
[1758286939772,64.7787,240.94,240.82,7.21]
[1758286939970,6.7,240.92,240.82,7.21]
[1758286940375,6.7285443,240.9,240.82,7.21]
[1758286941874,3.7346,240.88,240.82,7.21]
[1758286942979,10.4627443,240.9,240.82,7.21]
[1758286943874,10.4627443,240.9,240.83,3.7353]
[1758286944073,10.4627443,240.9,240.84,7.21]
[1758286944479,3.7345,240.89,240.83,3.7353]
[1758286944677,10.4345,240.89,240.84,7.21]
[1758286945373,10.4345,240.89,240.83,7.21]
[1758286946274,3.7346,240.88,240.82,100.44]
[1758286946679,3.7346,240.88,240.83,7.21]
[1758286947177,10.4346,240.88,240.83,7.21]
[1758286947679,10.4346,240.88,240.81,9.29674]
[1758286947880,10.4346,240.88,240.82,107.65]
[1758286948383,10.4346,240.88,240.82,7.21]
[1758286948682,10.4346,240.88,240.82,107.65]
[1758286951284,6.7,240.88,240.82,104.1752]
[1758286951684,0.0285443,240.9,240.82,100.44]
[1758286951884,0.0285443,240.9,240.83,7.1]
[1758286952586,6.67,240.89,240.81,5.56114]
[1758286952782,2.25120586,240.87,240.81,5.56114]
[1758286953683,6.67,240.86,240.81,5.56114]
[1758286953882,3.7352,240.84,240.81,5.56114]
[1758286954089,6.67,240.83,240.81,5.56114]
[1758286954286,3.7352,240.84,240.81,5.56114]
[1758286954485,6.67,240.83,240.81,5.56114]
[1758286955182,3.7648405,240.84,240.81,5.56114]
[1758286955380,6.67,240.83,240.81,5.56114]
[1758286955789,3.7648405,240.84,240.81,5.56114]
[1758286955993,10.4055,240.82,240.81,5.56114]
[1758286963490,6.6996405,240.84,240.81,5.56114]
[1758286963695,0.0296405,240.84,240.81,5.56114]
[1758286963888,0.0296405,240.84,240.82,7.1]
[1758286964084,0.0296405,240.84,240.81,5.56114]
[1758286964294,0.0296405,240.84,240.82,7.1]
[1758286964490,6.6996405,240.84,240.82,7.1]
[1758286965396,0.0296405,240.84,240.82,7.1]
[1758286966095,0.0296405,240.84,240.81,5.56114]
[1758286966296,0.0296405,240.84,240.82,7.1]
[1758286966595,0.0296405,240.84,240.81,5.56114]
[1758286967492,0.0296405,240.84,240.82,7.1]
[1758286967688,0.0296405,240.84,240.81,5.56114]
[1758286967888,0.0296405,240.84,240.82,7.1]
[1758286968088,0.0296405,240.84,240.81,5.56114]
[1758286968285,0.0296405,240.84,240.82,7.1]
[1758286968485,0.0296405,240.84,240.81,5.56114]
[1758286968898,6.67,240.83,240.81,5.56114]
[1758286969095,0.0296405,240.84,240.81,5.56114]
[1758286969593,3.7355,240.82,240.81,5.56114]
[1758286969800,10.4055,240.82,240.81,5.56114]
[1758286970190,3.7355,240.82,240.81,5.56114]
[1758286970396,3.7648405,240.84,240.82,7.1]
[1758286971201,3.7354,240.83,240.81,5.56114]
[1758286973796,3.7354,240.83,240.81,12.66114]
[1758286974199,0.0296405,240.84,240.81,5.56114]
[1758286974400,0.0296405,240.84,240.82,7.1]
[1758286974804,0.0296405,240.84,240.81,5.56114]
[1758286975005,0.0296405,240.84,240.82,7.1]
[1758286975502,0.0296405,240.84,240.81,5.56114]
[1758286976303,0.0296405,240.84,240.82,7.1]
[1758286978002,0.0296405,240.84,240.81,5.56114]
[1758286978299,0.0296405,240.84,240.82,7.1]
[1758286978502,0.0296405,240.84,240.82,10.8353]
[1758286978703,0.0296405,240.84,240.83,7.1]
[1758286980304,6.75,240.97,240.85,3.7348]
[1758286980504,2.86629198,240.96,240.86,7.1]
[1758286980708,6.75,240.97,240.86,7.1]
[1758286981096,3.7335,240.94,240.86,7.1]
[1758286981505,3.7335,240.94,240.88,0.02956854]
[1758286982099,3.7335,240.94,240.89,7.1]
[1758286982301,3.7335,240.94,240.88,0.02956854]
[1758286982493,59.50859238,240.99,240.88,0.02956854]
[1758286982494,6.75,240.97,240.88,7.12956854]
[1758286982695,6.75,240.95,240.88,7.12956854]
[1758286982893,2.86687718,240.94,240.88,7.12956854]
[1758286983097,6.75,240.95,240.88,7.12956854]
[1758286983303,2.86731069,240.94,240.88,7.12956854]
[1758286983503,6.75,240.95,240.88,7.12956854]
[1758286983699,2.86724188,240.94,240.88,7.12956854]
[1758286983903,3.7341,240.92,240.89,7.1]
[1758286986809,6.75,240.95,240.89,7.1]
[1758286986810,10.4836,240.95,240.89,7.1]
[1758286988912,6.75,240.99,240.89,7.1]
[1758286989108,6.75,240.99,240.91,7.1]
[1758286989310,6.75,241.02,240.92,3.7338]
[1758286989609,3.7328,241.0,240.93,7.1]
[1758286989912,6.75,241.02,240.93,7.1]
[1758286990110,10.4825,241.02,240.94,0.0312089]
[1758286995722,10.4825,241.02,240.94,3.7648089]
[1758286995917,10.4825,241.02,240.95,7.1]
[1758286996318,6.75,241.02,240.95,7.1]
[1758286997517,10.4825,241.02,240.95,7.1]
[1758286999524,6.75,241.02,240.95,7.1]
[1758287002027,10.4825,241.02,240.95,7.1]
[1758287006724,10.4825,241.02,240.96,3.7333]
[1758287006920,6.75,241.02,240.96,12.27409238]
[1758287009922,6.75,241.02,240.98,7.19]
[1758287010124,6.75,241.02,240.97,3.733]
[1758287010323,6.75,241.02,240.98,7.19]
[1758287010719,3.7321,241.04,240.98,7.19]
[1758287011229,10.4321,241.04,240.98,7.19]
[1758287012532,6.7,241.1,241.0,7.19]
[1758287013230,6.7,241.1,241.03,0.03073122]
[1758287013825,3.7315,241.08,241.03,0.03073122]
[1758287014124,6.7,241.07,241.03,7.22073122]
[1758287014529,3.7315,241.08,241.03,7.22073122]
[1758287014729,6.7,241.07,241.03,7.22073122]
[1758287014926,6.7,241.07,241.03,0.03073122]
[1758287015130,6.7,241.07,241.04,7.19]
[1758287015331,6.7,241.07,241.03,0.03073122]
[1758287015627,6.7,241.07,241.04,7.19]
[1758287015825,64.16121055,241.15,241.04,7.19]
[1758287016027,6.7,241.14,241.04,8.63079238]
[1758287016529,6.7,241.14,241.04,10.922]
[1758287016727,6.7,241.14,241.04,12.36279238]
[1758287016922,6.7,241.14,241.04,7.19]
[1758287017123,6.7,241.11,241.04,7.19]
[1758287017727,1.44079238,241.13,241.03,0.03073122]
[1758287017728,6.7,241.12,241.03,0.03073122]
[1758287017931,6.7,241.09,241.03,0.03073122]
[1758287018132,8.14079238,241.09,241.03,0.03073122]
[1758287018335,3.7319,241.06,241.03,0.03073122]
[1758287018525,6.7,241.05,241.03,0.03073122]
[1758287018922,3.7319,241.06,241.03,0.03073122]
[1758287019128,6.7,241.05,241.03,0.03073122]
[1758287019327,1.44079238,241.09,241.03,0.03073122]
[1758287019328,10.4321,241.04,241.03,0.03073122]
[1758287026938,3.7334,240.96,240.9,1.44079238]